{"text_format":"1","workbook":"xlsx","n_sheets":3,"sheets":["Feuil1","Feuil2","Feuil3"],"not_rendered":{"charts":0,"images":0,"macros":0,"external_links":0,"defined_names":0,"comments":0,"pivot_tables":0},"unopened":[],"bounds":{"document_bytes":16777216,"sheet_cells":100000,"rows_first":2000,"rows_last":500,"rows_between":2000,"halvings":0,"cell_chars":16384,"cell_head_chars":4096},"cells_cut":0,"cells_raw":0,"read":"whole","date_system":"1900"}

{"sheet":"Feuil1","index":0,"n_rows":32,"n_cols":10,"rows_kept":32,"cut":false,"hidden":false,"merged":[[1,6,1,7],[1,8,1,9],[4,3,4,4],[9,4,9,5],[10,4,10,5]]}
[]
[null,null," ",null,null,null,"Taper une date en B2",null,"Avec tous les jours affichés"]
[null,{"$f":"IF(B2<>\"\",B2+1,\"\")","v":""}]
[null,{"$f":"IF(B3<>\"\",B3+1,\"\")","v":""},null,null,null,null,null," "]
[null,"",null,"Taper une date en G5",null,null,null,"Avec premier et dernier jour"]
[null,"",null,null,null,null,{"$f":"IF(G5<>\"\",EOMONTH(G5,0),\"\")","v":""}]
[null,""]
[null,""]
[null,""]
[null,"",null,null,"Solution 1",null,null,null," "]
[null,"",null,null,"Solution 2",null,null,null,{"$f":"RIGHT(I10,2)","v":" "}," "]
[null,"",null,null,null,null,null,null," "]
[null,""]
[null,"",null,null,null,null,null,"NBCAR((DROITE(ANNEE($b$2);2)/4))"," "]
[null,"",null,null,null,null,null," "]
[null,"",null,null,null,null,null," "]
[null,""]
[null,""]
[null,""]
[null,""]
[null,""]
[null,""]
[null,""]
[null,""]
[null,""]
[null,""]
[null,""]
[null,""]
[null,""]
[null,"",null,null,null,null,null,null," "]
[null,""]
[null,""]

{"sheet":"Feuil2","index":1,"n_rows":0,"n_cols":0,"rows_kept":0,"cut":false,"hidden":false,"merged":[]}

{"sheet":"Feuil3","index":2,"n_rows":0,"n_cols":0,"rows_kept":0,"cut":false,"hidden":false,"merged":[]}